Workbook

Sheet Pequenos Credores
A1: PAGAMENTOS REFERENTES AO MÊS DE JANEIRO DE 2020
A3: LISTA CLASSIFICATÓRIA ESPECIAL DE PEQUENOS CREDORES* FONTE 8250264430
A4: Nº | B4: N° FATURA | C4: VALOR DA FATURA | D4: CONTRATO | E4: RAZÃO SOCIAL | F4: CNPJ | G4: N° PROCESSO | H4: DATA DA EXIGIBILIDADE* | I4: DATA DE ENVIO P/ PGMT | J4: DATA DE PAGAMENTO | K4: JUSTIFICATIVA | L4: PAGAMENTO EFETUADO?
A5: 1 | B5: 222368 | C5: 537.6 | E5: FARMACE INDUSTRIA QUIMICO FARMACEUTICA CEARENSE LTDA | F5: 06.628.333/0001-46 | G5: 23817.000321/2020-67 | H5: 2020-01-07 | I5: 2020-01-15 | J5: 2020-01-21 | L5: SIM
A6: 2 | B6: 222669 | C6: 347.87 | D6: 07/2018 | E6: SAPRA LANDAUER SERV. DE ASSESSORIA E PORT. RADIOLPGICA LTDA | F6: 50.429.810/0001-36 | G6: 23817.000110/2020-24 | H6: 2020-01-05 | I6: 2020-01-16 | J6: 2020-01-24 | L6: SIM
C7: =SUM(C5:C6) -> 885.47
A9: LISTA CLASSIFICATÓRIA ESPECIAL DE PEQUENOS CREDORES* FONTE 6300000300
A10: Nº | B10: N° FATURA | C10: VALOR DA FATURA | D10: CONTRATO | E10: RAZÃO SOCIAL | F10: CNPJ | G10: N° PROCESSO | H10: DATA DA EXIGIBILIDADE* | I10: DATA DE ENVIO P/ PGMT | J10: DATA DE PAGAMENTO | K10: JUSTIFICATIVA | L10: PAGAMENTO EFETUADO?
A11: 1 | B11: 7229 | C11: 6048 | E11: DISTRIBUIDORA DE MEDICAMENTOS PRO SAUDE LTDA | F11: 08.676.370/0001-55 | G11: 23817.012817/2019-40 | H11: 2019-12-24 | I11: 2019-12-24 | J11: 2020-01-09 | L11: SIM
A12: 2 | B12: 7230 | C12: 144.2 | E12: DISTRIBUIDORA DE MEDICAMENTOS PRO SAUDE LTDA | F12: 08.676.370/0001-55 | G12: 23817.012815/2019-51 | H12: 2019-12-23 | I12: 2019-12-24 | J12: 2020-01-09 | L12: SIM
A13: 3 | B13: 7231 | C13: 1184 | E13: DISTRIBUIDORA DE MEDICAMENTOS PRO SAUDE LTDA | F13: 08.676.370/0001-55 | G13: 23817.012790/2019-95 | H13: 2019-12-23 | I13: 2019-12-24 | J13: 2020-01-09 | L13: SIM
A14: 4 | B14: 307068 | C14: 6251 | E14: PB FARMA DISTRIBUIDORA DE MEDICAMENTOS LTDA | F14: 05.487.170/0001-66 | G14: 23817.012729/2019-48 | H14: 2019-12-20 | I14: 2019-12-24 | J14: 2020-01-09 | L14: SIM
A15: 5 | B15: 70226 | C15: 4900 | E15: CENTRO ESPECIALIZADO DE NUTRIÇÃO | F15: 05.893.097/0001-22 | G15: 23817.012836/2019-76 | H15: 2019-12-23 | I15: 2019-12-26 | J15: 2020-01-09 | L15: SIM
A16: 6 | B16: 7813 | C16: 1890 | E16: ABM HOSPITALAR LTDA -ME | F16: 22.554.493/0001-44 | G16: 23817.012788/2019-16 | H16: 2019-12-23 | I16: 2019-12-26 | J16: 2020-01-09 | L16: SIM
A17: 7 | B17: 551217 | C17: 5890 | E17: ASTRAZENECA DO BRASIL LTDA | F17: 60.318.797/0001-00 | G17: 23817.012845/2019-67 | H17: 2019-12-24 | I17: 2019-12-26 | J17: 2020-01-09 | L17: SIM
A18: 8 | B18: 39038 | C18: 2400 | E18: ACCORD FARMACEUTICA LTDA | F18: 64.171.697/0001-46 | G18: 23817.012844/2019-12 | H18: 2019-12-24 | I18: 2019-12-26 | J18: 2020-01-09 | L18: SIM
A19: 9 | B19: 151837 E 152318 | C19: 18315 | E19: FARMAC PRODUTOS HOSPITALARES E LABORATORIAIS LTDA | F19: 32.838.716/0001-59 | G19: 23817.012838/2019-65 | H19: 2019-12-23 | I19: 2019-12-26 | J19: 2020-01-09 | L19: SIM
A20: 10 | B20: 30986 | C20: 1000 | E20: MEDIC STOCK COMERCIO DE PRODUTOS MEDICOS HOSPITALALRES EIRELI | F20: 05.997.927/0001-61 | G20: 23817.012850/2019-70 | H20: 2019-12-23 | I20: 2019-12-26 | J20: 2020-01-09 | L20: SIM
A21: 11 | B21: 1688 | C21: 3299.85 | E21: MILLENIUM COMERCIO E SERVIÇOS LTDA | F21: 13.008.903/0001-60 | G21: 23817.012848/2019-09 | H21: 2019-12-23 | I21: 2019-12-27 | J21: 2020-01-09 | L21: SIM
A22: 12 | B22: 137977 | C22: 815 | E22: PROMEFARMA REPRESENTAÇÕES COMERCIAIS LTDA | F22: 81.706.251/0001-98 | G22: 23817.012899/2019-22 | H22: 2019-12-26 | I22: 2019-12-27 | J22: 2020-01-09 | L22: SIM
A23: 13 | B23: 137976 | C23: 1594 | E23: PROMEFARMA REPRESENTAÇÕES COMERCIAIS LTDA | F23: 81.706.251/0001-98 | G23: 23817.012897/2019-33 | H23: 2019-12-26 | I23: 2019-12-27 | J23: 2020-01-09 | L23: SIM
A24: 14 | B24: 6802 | C24: 1206.9 | E24: EXEMPLARMED COMERCIO DE PRODUTOS HOSPITALARES LTDA ME | F24: 23.312.871/0001-46 | G24: 23817.012892/2019-19 | H24: 2019-12-26 | I24: 2019-12-27 | J24: 2020-01-09 | L24: SIM
A25: 15 | B25: 8063 | C25: 80 | E25: MEDMAX COM DE MEDICAMENTOS LTDA | F25: 16.553.940/0001-48 | G25: 23817.012884/2019-64 | H25: 2019-12-26 | I25: 2019-12-27 | J25: 2020-01-09 | L25: SIM
A26: 16 | B26: 8064 | C26: 285 | E26: MEDMAX COM DE MEDICAMENTOS LTDA | F26: 16.553.940/0001-48 | G26: 23817.012887/2019-06 | H26: 2019-12-26 | I26: 2019-12-27 | J26: 2020-01-09 | L26: SIM
A27: 17 | B27: 1241 | C27: 4032 | E27: PROVIDER PRODUTOS HOSPITALARES E SANEANTES LTDA EPP | F27: 26.164.075/0001-00 | G27: 23817.012843/2019-78 | H27: 2019-12-23 | I27: 2019-12-27 | J27: 2020-01-09 | L27: SIM
A28: 18 | B28: 324 | C28: 226.2 | E28: CIRURGIA SAO LUIS DISTRIB. DE MEDIC. E PROD. HOSP. EIRELI | F28: 31.940.937/0001-70 | G28: 23817.012821/2019-16 | H28: 2019-12-23 | I28: 2019-12-27 | J28: 2020-01-09 | L28: SIM
A29: 19 | B29: 42 | C29: 2041 | E29: MONTEIRO E FAGUNDES COMERCIO E SERVIÇOS LTDA | F29: 28.156.162/0001-32 | G29: 23817.012942/2019-50 | H29: 2019-12-26 | I29: 2019-12-27 | J29: 2020-01-09 | L29: SIM
A30: 20 | B30: 2962 | C30: 2640 | E30: DISTRIBUIDORA INTENSIVA MATERIAL ME | F30: 13.496.848/0001-03 | G30: 23817.012941/2019-13 | H30: 2019-12-26 | I30: 2019-12-27 | J30: 2020-01-09 | L30: SIM
A31: 21 | B31: 7285 | C31: 850 | E31: CARLA DE OLIVEIRA CORREA | F31: 08.583.229/0001-08 | G31: 23817.012960/2019-31 | H31: 2019-12-27 | I31: 2019-12-27 | J31: 2020-01-09 | L31: SIM
A32: 22 | B32: 7783,7794,7753,7563,7565,7628E7670 | C32: 34857.8 | E32: ABM HOSPITALAR LTDA - ME | F32: 22.554.493/0001-44 | G32: 23817.010794/2019-39 | H32: 2019-12-20 | I32: 2019-12-27 | J32: 2020-01-09 | L32: SIM
A33: 23 | B33: 8301 | C33: 11625.9 | E33: COSMODERMA INDUSTRIA E COMERCIO LTDA | F33: 09.601.610/0001-15 | G33: 23817.012961/2019-86 | H33: 2019-12-27 | I33: 2019-12-27 | J33: 2020-01-09 | L33: SIM
A34: 24 | B34: 586617 e 586604 | C34: =28536+3436.21 -> 31972.21 | E34: SIEMENS HEALTHCARE DIAGNÓSTICOS LTDA | F34: 01.449.930/0003-51 | G34: 23817.012957/2019-18 | H34: 2019-12-27 | I34: 2019-12-30 | J34: 2020-01-09 | L34: SIM
A35: 25 | B35: 12390 | C35: 5160 | E35: ROMED INDUSTRIA E COMERCIO DE EQUIPAMENTOS MEDICOS LTDA EPP | F35: 13.644.713/0001-30 | G35: 23817.000104/2020-77 | H35: 2020-01-03 | I35: 2020-01-08 | J35: 2020-01-17 | L35: SIM
A36: 26 | B36: 3938 | C36: 6907.52 | E36: BIODIAG DIAGNOSTICA E HOSPTALAR LTDA | F36: 20.273.404/0001-66 | G36: 23817.000106/2020-66 | H36: 2020-01-03 | I36: 2020-01-13 | L36: NÃO
A37: 27 | B37: 7925 | C37: 842 | E37: MEDMAX COMERCIO DE MEDICAMENTOS LTDA | F37: 16.553.940/0001-48 | G37: 23817.012846/2019-10 | H37: 2020-01-06 | I37: 2020-01-13 | L37: NÃO
A38: 28 | B38: 1241 | C38: 80 | E38: M. DIAS COMERCIO DE PRODUTOS HOSPITALAR EIRELI | F38: 14.461.796/0001-94 | G38: 23817.000157/2020-98 | H38: 2020-01-06 | I38: 2020-01-13 | L38: NÃO
A39: 29 | B39: 3583 | C39: 969 | E39: JOSIANE CRISTINA FUSCO CARRARO EPP | F39: 21.940.274/0001-30 | G39: 23817.000203/2020-59 | H39: 2020-01-06 | I39: 2020-01-13 | L39: NÃO
A40: 30 | B40: 7841 | C40: 52 | E40: ABM HOSPITALAR LTDA -ME | F40: 22.554.493/0001-44 | G40: 23817.000197/2020-30 | H40: 2020-01-06 | I40: 2020-01-13 | L40: NÃO
A41: 31 | B41: 7288 | C41: 1480 | E41: DISTRIBUIDORA DE MEDICAMENTOS PRO SAUDE LTDA | F41: 08.676.370/0001-55 | G41: 23817.000192/2020-15 | H41: 2020-01-06 | I41: 2020-01-14 | L41: NÃO
A42: 32 | B42: 70584 | C42: 3420 | E42: CENTRO ESPECIALIZADO DE NUTRIÇÃO | F42: 05.893.097/0001-22 | G42: 23817.000222/2020-85 | H42: 2020-01-06 | I42: 2020-01-14 | L42: NÃO
A43: 33 | B43: 315251 | C43: 420 | E43: POLAR FIX INDUSTRIA E COMERCIO DE PRODUTOS HOSPITALARES LTDA | F43: 02.881.877/0001-64 | G43: 23817.000190/2020-18 | H43: 2020-01-06 | I43: 2020-01-14 | L43: NÃO
A44: 34 | B44: 421 | C44: 4767 | E44: CENUTRI COMERCIO E SERVIÇOS EIRELI | F44: 26.605.573/0001-32 | G44: 23817.000239/2020-32 | H44: 2020-01-07 | I44: 2020-01-14 | L44: NÃO
A45: 35 | B45: 12467 | C45: 1899 | E45: MEDICAL CIRURGICA LTDA | F45: 60.683.786/0001-10 | G45: 23817.000186/2020-50 | H45: 2020-01-06 | I45: 2020-01-14 | L45: NÃO
A46: 36 | B46: 299353 | C46: 2290 | E46: DROGAFONTE MEDICAMENTOS E MATERIAL HOSPITALAR | F46: 08.778.201/0001-26 | G46: 23817.000317/2020-07 | H46: 2020-01-07 | I46: 2020-01-14 | L46: NÃO
A47: 37 | B47: 6890 | C47: 186 | E47: EXEMPLARMED COMERCIO DE PRODUTOS HOSPITALARES LTDA ME | F47: 23.312.871/0001-46 | G47: 23817.000286/2020-86 | H47: 2020-01-06 | I47: 2020-01-14 | L47: NÃO
A48: 38 | B48: 7342 | C48: 360 | E48: DISTRIBUIDORA DE MEDICAMENTOS PRO SAUDE LTDA | F48: 08.676.370/0001-55 | G48: 23817.000314/2020-65 | H48: 2020-01-07 | I48: 2020-01-14 | L48: NÃO
A49: 39 | B49: 7795 | C49: 397 | E49: MEDMAX COMERCIO DE MEDICAMENTOS LTDA | F49: 16.553.940/0001-48 | G49: 23817.000226/2020-63 | H49: 2020-01-07 | I49: 2020-01-14 | L49: NÃO
A50: 40 | B50: 54505 | C50: 414 | E50: COMERCIAL VALFARMA EIRELI | F50: 02.600.770/0001-09 | G50: 23817.000342/2020-82 | H50: 2020-01-06 | I50: 2020-01-15 | L50: NÃO
A51: 41 | B51: 6427 | C51: 343 | E51: LOGER DISTRIBUIDORA DE MEDICAMENTOS E MATERIAIS HOSPITALARES | F51: 27.600.270/0001-90 | G51: 23817.000327/2020-34 | H51: 2020-01-07 | I51: 2020-01-15 | L51: NÃO
A52: 42 | B52: 53603 | C52: 12198 | E52: ATIVA PRODUTOS MEDICOS HOSPITALARES LTDA | F52: 07.925.203/0001-38 | G52: 23817.000255/2020-25 | H52: 2020-01-07 | I52: 2020-01-15 | L52: NÃO
A53: 43 | B53: 15602 | C53: 4320 | E53: FARMAC PRODUTOS HOSPITALARES E LABORATORIAIS LTDA | F53: 32.838.716/0001-59 | G53: 23817.000348/2020-50 | H53: 2020-01-08 | I53: 2020-01-15 | L53: NÃO
A54: 44 | B54: 3238 | C54: 1880 | E54: PROMEDI DISTRIBUIDORA DE PRODUTOS HOSPITALARES LTDA | F54: 27.806.274/0001-29 | G54: 23817.000398/2020-37 | H54: 2020-01-09 | I54: 2020-01-16 | L54: NÃO
A55: 45 | B55: 21 | C55: 2600 | E55: EXCLUSIVE PRODUTOS HOSPITALARES EIRELI | F55: 33.891.594/0001-27 | G55: 23817.000483/2020-03 | H55: 2020-01-10 | I55: 2020-01-16 | L55: NÃO
A56: 46 | B56: 20832 | C56: 7200 | E56: DOUGLAS MEDICO CIENTIFICA LTDA - EPP | F56: 32.889.057/0001-80 | G56: 23817.000558/2020-48 | H56: 2020-01-10 | I56: 2020-01-16 | L56: NÃO
A57: 47 | B57: 14772 | C57: 27870 | E57: JN MAXIMED COMERCIO DE PRODUTOS HOSPITALARES LTDA | F57: 18.279.039/0001-55 | G57: 23817.000699/2020-61 | H57: 2020-01-15 | I57: 2020-01-16 | L57: NÃO
A58: 48 | B58: 931 | C58: 1028.7 | E58: NEO MED MATERIAL HOSPITALARES LTDA | F58: 23.119.087/0001-16 | G58: 23817.000701/2020-00 | H58: 2020-01-15 | I58: 2020-01-16 | L58: NÃO
A59: 49 | B59: 31 | C59: 3975 | E59: INTRAVIN DISTRIBUIDORA E COMERCIO EIRELI | F59: 28.807.825/0001-31 | G59: 23817.000601/2020-75 | H59: 2020-01-13 | I59: 2020-01-16 | L59: NÃO
A60: 50 | B60: 20355 | C60: 1562.34 | E60: MAXIM QUALITA COMERCIO LTDA | F60: 05.075.962/0001-23 | G60: 23817.000821/2020-07 | H60: 2020-01-16 | I60: 2020-01-17 | L60: NÃO
A61: 51 | B61: 6546 | C61: 2366 | E61: SANFARMA COM. DE MEDICAMENTOS LTDA | F61: 00.895.119/0001-70 | G61: 23817.000804/2020-61 | H61: 2020-01-15 | I61: 2020-01-17 | L61: NÃO
A62: 52 | B62: 6249 E 6547 | C62: 5340.8 | E62: SANFARMA COM. DE MEDICAMENTOS LTDA | F62: 00.895.119/0001-70 | G62: 23817.011842/2019-14 | H62: 2020-01-15 | I62: 2020-01-17 | L62: NÃO
A63: 53 | B63: 132 | C63: 3360 | E63: PHLIFE HOSPITALAR | F63: 29.474.250/0001-45 | G63: 23817.000846/2020-01 | H63: 2020-01-17 | I63: 2020-01-17 | L63: NÃO
A64: 54 | B64: 6312,6248 E6549 | C64: 8934.2 | E64: SANFARMA COM. DE MEDICAMENTOS LTDA | F64: 00.895.119/0001-70 | G64: 23817.012904/2019-05 | H64: 2020-01-20 | I64: 2020-01-21 | L64: NÃO
A65: 55 | B65: 31381 | C65: 444 | E65: MEDIC STOCK COMERCIO DE PRODUTOS MEDICOS HOSPITALARES EIRELI | F65: 05.997.927/0001-61 | G65: 23817.001000/2020-80 | H65: 2020-01-21 | I65: 2020-01-21 | L65: NÃO
A66: 56 | B66: 91 | C66: 3386.8 | E66: PRIME SOLUCOES EM SUDE - EIRELI | F66: 27.080.739/0001-07 | G66: 23817.000813/2020-52 | H66: 2020-01-16 | I66: 2020-01-21 | L66: NÃO
A67: 57 | B67: 90 | C67: 600 | E67: PRIME SOLUCOES EM SUDE - EIRELI | F67: 27.080.739/0001-07 | G67: 23817.000866/2020-73 | H67: 2020-01-17 | I67: 2020-01-21 | L67: NÃO
A68: 58 | B68: 93515 | C68: 30285 | E68: UNI HOSPITALAR LTDA | F68: 07.484.373/0001-24 | G68: 23817.001090/2020-17 | H68: 2020-01-22 | I68: 2020-01-22 | L68: NÃO
A69: 59 | B69: 6246 E 6550 | C69: 18970.8 | E69: SANFARMA COM. DE MEDICAMENTOS LTDA | F69: 00.895.119/0001-70 | G69: 23817.011864/2020-76 | H69: 2020-01-17 | I69: 2020-01-22 | L69: NÃO
A70: 60 | B70: 568 | C70: 1590.5 | E70: LB COMERCIO E SERVIÇOS LTDA | F70: 18.486.967/0001-44 | G70: 23817.001179/2020-75 | H70: 2020-01-23 | I70: 2020-01-24 | L70: NÃO
A71: 61 | B71: 42776 | C71: 219.6 | E71: DROGUISTA CEARENSE EIRELI | F71: 16.632.133/0001-10 | G71: 23817.001249/2020-95 | H71: 2020-01-24 | I71: 2020-01-27 | L71: NÃO
A72: 62 | B72: 913 | C72: 106 | E72: BML HOSPITALAR LTDA | F72: 27.187.758/0001-37 | G72: 23817.001429/2020-77 | H72: 2020-01-28 | I72: 2020-01-29 | L72: NÃO
A73: 63 | B73: 3803 | C73: 752 | E73: CRUZEL COMERCIAL DISTRIBUIDORA DE PRODUTOS HOSPITALARES EIRELI | F73: 19.877.178/0001-43 | G73: 23817.001423/2020-08 | H73: 2020-01-27 | I73: 2020-01-29 | L73: NÃO
A74: 64 | B74: 11993 | C74: 1008 | E74: DELTA INDUSTRIA E COMERCIO LTDA | F74: 17.602.864/0001-86 | G74: 23817.001428/2020-22 | H74: 2020-01-28 | I74: 2020-01-29 | L74: NÃO
A75: 65 | B75: 7870 E 7941 | C75: =1725.5+773.5 -> 2499 | E75: ABM HOSPITALAR LTDA -ME | F75: 22.554.493/0001-44 | G75: 23817.000170/2020-47 | H75: 2020-01-28 | I75: 2020-01-29 | L75: NÃO
A76: 66 | B76: 7924 E 7963 | C76: 3148 | E76: ABM HOSPITALAR LTDA -ME | F76: 22.554.493/0001-44 | G76: 23817.001409/2020-04 | H76: 2020-01-28 | I76: 2020-01-29 | L76: NÃO
C77: =SUM(C11:C75) -> 316031.32
A79: LISTA CLASSIFICATÓRIA ESPECIAL DE PEQUENOS CREDORES* FONTE 0151001416
A80: Nº | B80: N° FATURA | C80: VALOR DA FATURA | D80: CONTRATO | E80: RAZÃO SOCIAL | F80: CNPJ | G80: N° PROCESSO | H80: DATA DA EXIGIBILIDADE* | I80: DATA DE ENVIO P/ PGMT | J80: DATA DE PAGAMENTO | K80: JUSTIFICATIVA | L80: PAGAMENTO EFETUADO?
A81: 1 | B81: 14355 | C81: 5220 | E81: JN-MAXIMED COMERCIO DE PRODUTOS HOSPITALARES | F81: 18.279.039/0001-55 | G81: 23817.012253/2019-45 | H81: 2019-12-09 | I81: 2019-12-19 | L81: NÃO
A82: 2 | B82: 7871 | C82: 1228.5 | E82: ABM HOSPITALAR LTDA -ME | F82: 22.554.493/0001-44 | G82: 23817.000189/2020-93 | H82: 2020-01-06 | I82: 2020-01-13 | L82: NÃO
C83: =SUM(C81:C82) -> 6448.5
A85: LISTA CLASSIFICATÓRIA ESPECIAL DE PEQUENOS CREDORES* FONTE 8100915107
A86: Nº | B86: N° FATURA | C86: VALOR DA FATURA | D86: CONTRATO | E86: RAZÃO SOCIAL | F86: CNPJ | G86: N° PROCESSO | H86: DATA DA EXIGIBILIDADE* | I86: DATA DE ENVIO P/ PGMT | J86: DATA DE PAGAMENTO | K86: JUSTIFICATIVA | L86: PAGAMENTO EFETUADO?
A87: 1 | B87: 189 | C87: 13041.95 | E87: JORGE LUIZ DE GUSMAO BUARQUE EIRELI | F87: 31.157.789/0001-12 | G87: 23817.010397/2019-67 | H87: 2019-11-04 | I87: 2020-01-14 | J87: 2020-01-24 | L87: SIM
A88: 2 | B88: 4099 | C88: 1060.8 | E88: CONKAST EQUIPAMENTOS TECNOLOGICOS LTDA -ME | F88: 06.127.890/0001-83 | G88: 23817.000673/2020-12 | H88: 2020-01-14 | I88: 2020-01-15 | J88: 2020-01-24 | L88: SIM
A89: 3 | B89: 21120 | C89: 15950 | E89: DATEN TECNOLOGIA LTDA | F89: 04.602.789/0001-01 | G89: 23817.000253/2020-36 | H89: 2020-01-06 | I89: 2020-01-15 | J89: 2020-01-24 | L89: SIM
A90: 4 | B90: 146567 | C90: 4700 | D90: 15/2019 | E90: OLYMPUS OPTICAL DO BRASIL LTDA | F90: 04.937.243/0001-01 | G90: 23817.012136/2019-81 | H90: 2020-01-04 | I90: 2020-01-16 | J90: 2020-01-24 | L90: SIM
A91: 5 | B91: 27 | C91: 1619.8 | E91: JURCELANE DE OLIVEIRA BATISTA FARIA 80910068100 | F91: 19.051.470/0001-02 | G91: 23817.000591/2020-78 | H91: 2020-01-13 | I91: 2020-01-20 | L91: NÃO
A92: 6 | B92: 65831 | C92: 2550 | E92: COMERCIAL MOSTAERT LTDA | F92: 11.563.145/0001-17 | G92: 23817.000914/2020-23 | H92: 2020-01-20 | I92: 2020-01-20 | L92: NÃO
A93: 7 | B93: 65841 | C93: 5400 | E93: COMERCIAL MOSTAERT LTDA | F93: 11.563.145/0001-17 | G93: 23817.000923/2020-14 | H93: 2020-01-20 | I93: 2020-01-20 | L93: NÃO
A94: 8 | B94: 54890 | C94: 2214 | E94: COMERCIAL VALFARMA EIRELI | F94: 02.600.770/0001-09 | G94: 23817.000937/2020-38 | H94: 2020-01-20 | I94: 2020-01-20 | L94: NAO
A95: 9 | B95: 65844 | C95: 717 | E95: COMERCIAL MOSTAERT LTDA | F95: 11.563.145/0001-17 | G95: 23817.000958/2020-53 | H95: 2020-01-20 | I95: 2020-01-21 | L95: NÃO
A96: 10 | B96: 2440 | C96: 13765.98 | E96: MULTY FORMAS MOVEIS LTDA ME | F96: 09.942.979/0001-91 | G96: 23817.001018/2020-81 | H96: 2020-01-21 | I96: 2020-01-21 | L96: NÃO
A97: 11 | B97: 2514321 | C97: 8250 | E97: CRISTALIA PRODUTOS QUIMICOS FARMACEUTICOS LTDA | F97: 44.734.671/0001-51 | G97: 23817.001030/2020-96 | H97: 2020-01-21 | I97: 2020-01-22 | L97: NÃO
A98: 12 | B98: 552853 | C98: 5890 | E98: ASTRAZENECA DO BRASIL LTDA | F98: 60.318.797/0001-00 | G98: 23817.001001/202024 | H98: 2020-01-21 | I98: 2020-01-22 | L98: NÃO
A99: 13 | B99: 3453 | C99: 2890 | E99: UNI HOSPITALAR LTDA | F99: 07.484.373/0001-24 | G99: 23817.001095/2020-31 | H99: 2020-01-17 | I99: 2020-01-22 | L99: NÃO
A100: 14 | B100: 14226 | C100: 3298 | E100: R C MOVEIS LTDA | F100: 02.377.937/0001-06 | G100: 23817.000010/2020-06 | H100: 2020-01-20 | I100: 2020-01-22 | L100: NÃO
A101: 15 | B101: 18760 | C101: 776 | E101: MAIS SAUDE COMERCIO DE PRODUTOS HOSPITALARES LTDA | F101: 14.261.377/0001-09 | G101: 23817.001077/2020-50 | H101: 2020-01-17 | I101: 2020-01-22 | L101: NÃO
A102: 16 | B102: 35852 | C102: 33980 | E102: INSTRAMED INDUSTRIA MEEICO HOSPITALAR LTDA | F102: 90.909.631/0001-10 | G102: 23817.001103/2020-40 | H102: 2020-01-16 | I102: 2020-01-22 | L102: NÃO
A103: 17 | B103: 86648 | C103: 35000 | E103: PRIME MEDICAL COMERCIO DE MATERIAL MEDICO | F103: 09.342.946/0001-00 | G103: 23817.001140/2020-58 | H103: 2020-01-20 | I103: 2020-01-23 | L103: NÃO
A104: 18 | B104: 93440 | C104: 4488 | E104: UNI HOSPITALAR LTDA | F104: 07.484.373/0001-24 | G104: 23817.001114/2020-20 | H104: 2020-01-22 | I104: 2020-01-23 | L104: NÃO
A105: 19 | B105: 45 | C105: 8099 | E105: JURCELANE DE OLIVEIRA BATISTA FARIA 80910068100 | F105: 19.051.470/0001-02 | G105: 23817.001164/2020-15 | H105: 2020-01-23 | I105: 2020-01-23 | L105: NÃO
A106: 20 | B106: 65995 | C106: 14000 | E106: COMERCIAL MOSTAERT LTDA | F106: 11.563.145/0001-17 | G106: 23817.001180/2020-08 | H106: 2020-01-20 | I106: 2020-01-24 | L106: NÃO
A107: 21 | B107: 529706 | C107: 94000 | E107: BECTON DICKINSON INDUSTRIAIS CIRURGICAS LTDA | F107: 21.551.379/0008-74 | G107: 23817.001176/2020-31 | H107: 2020-01-22 | I107: 2020-01-24 | L107: NÃO
A108: 22 | B108: 5510 | C108: 4600 | E108: BIOS MATERIAIS HOSPITALARES LTDA | F108: 05.153.722.0001-08 | G108: 23817.001173/2020-06 | H108: 2020-01-22 | I108: 2020-01-24 | L108: NÃO
A109: 23 | B109: 2515274 | C109: 4285 | E109: CRISTALIA PRODUTOS QUIMICOS FARMACEUTICOS LTDA | F109: 44.734.671/0001-51 | G109: 23817.001183/2020-33 | H109: 2020-01-23 | I109: 2020-01-24 | L109: NÃO
A110: 24 | B110: 2515102 | C110: 7188 | E110: CRISTALIA PRODUTOS QUIMICOS FARMACEUTICOS LTDA | F110: 44.734.671/0001-51 | G110: 23817.001189/2020-19 | H110: 2020-01-23 | I110: 2020-01-24 | L110: NÃO
A111: 25 | B111: 7961 | C111: 14110 | E111: ABM HOSPITALAR LTDA -ME | F111: 22.554.493/0001-44 | G111: 23817.001237/2020-61 | H111: 2020-01-24 | I111: 2020-01-24 | L111: NÃO
A112: 26 | B112: 7965 | C112: 118 | E112: ABM HOSPITALAR LTDA -ME | F112: 22.554.493/0001-44 | G112: 23817.001320/2020-30 | H112: 2020-01-27 | I112: 2020-01-27 | L112: NÃO
A113: 27 | B113: 7962 | C113: 7410 | E113: ABM HOSPITALAR LTDA -ME | F113: 22.554.493/0001-44 | G113: 23817.001322/2020-29 | H113: 2020-01-27 | I113: 2020-01-27 | L113: NÃO
A114: 28 | B114: 6482 | C114: 1369 | E114: LOGER DIST. E MED E MAT HOSP | F114: 27.600.270.0001-90 | G114: 23817.001349/2020-11 | H114: 2020-01-27 | I114: 2020-01-28 | L114: NÃO
A115: 29 | B115: 300893 | C115: 302.3 | E115: DROGAFONTE MEDICAMENTOS E MATERIAL HOSPITALAR | F115: 08.778.201/0001-26 | G115: 23817.001371/2020-61 | H115: 2020-01-28 | I115: 2020-01-28 | L115: NÃO
A116: 30 | B116: 300846 | C116: 2008 | E116: DROGAFONTE MEDICAMENTOS E MATERIAL HOSPITALAR | F116: 08.778.201/0001-26 | G116: 23817.001391/2020-32 | H116: 2020-01-28 | I116: 2020-01-28 | L116: NÃO
A117: 31 | B117: 12921 | C117: 3545.25 | E117: GOLDENPLUS COM. DE MEDIC E PROD HOSPLS LTDA | F117: 17.472.278/0001-64 | G117: 23817.001366/2020-59 | H117: 2020-01-28 | I117: 2020-01-28 | L117: NÃO
A118: 32 | B118: 300856 | C118: 900 | E118: DROGAFONTE MEDICAMENTOS E MATERIAL HOSPITALAR | F118: 08.778.201/0001-26 | G118: 23817.001427/2020-88 | H118: 2020-01-28 | I118: 2020-01-28 | L118: NÃO
A119: 33 | B119: 3455 | C119: 2650 | E119: MEDEVICES PRODUTOS MEDICOS E HOSPITALARES LTDA - ME | F119: 24.774.241/0001-56 | G119: 23817.001420/2020-66 | H119: 2020-01-27 | I119: 2020-01-29 | L119: NÃO
A120: 34 | B120: 223 | C120: 6750 | E120: NORDPELL DISTRIBUIDORA LTDA | F120: 26.555.846/0001-81 | G120: 23817.001430/2020-00 | H120: 2020-01-28 | I120: 2020-01-29 | L120: NÃO
A121: 35 | B121: 2575 | C121: 770 | E121: MEDEFE PRODUTOS MEDICO - HOSPITALARES LTDA | F121: 25.463.374/0001-74 | G121: 23817.001419/2020-31 | H121: 2020-01-27 | I121: 2020-01-27 | L121: NÃO
C122: =SUM(C87:C117) -> 316626.08
A124: LISTA CLASSIFICATÓRIA ESPECIAL DE PEQUENOS CREDORES* FONTE 6153000300
A125: Nº | B125: N° FATURA | C125: VALOR DA FATURA | D125: CONTRATO | E125: RAZÃO SOCIAL | F125: CNPJ | G125: N° PROCESSO | H125: DATA DA EXIGIBILIDADE* | I125: DATA DE ENVIO P/ PGMT | J125: DATA DE PAGAMENTO | K125: JUSTIFICATIVA | L125: PAGAMENTO EFETUADO?
A126: 1 | B126: 27177467 | C126: 2575 | E126: BERNARDES COMERCIO E INDUSTRIA GRAFICA EIRELI | F126: 22.238.694/0001-32 | G126: 23817.000193/2020-51 | H126: 2020-01-06 | I126: 2020-01-14 | J126: 2020-01-21 | L126: SIM
A127: 2 | B127: 65157 | C127: 3000 | E127: COMERCIAL MOSTAERT LTDA | F127: 11.563.145/0001-17 | G127: 23817.000277/2020-95 | H127: 2020-01-06 | I127: 2020-01-14 | J127: 2020-01-21 | L127: SIM
A128: 3 | B128: 11214 | C128: 221 | E128: MED SHARP IND. E COM. PROD. HOSPITALARES LTDA | F128: 06.940.329/0001-19 | G128: 23817.000334/2020-36 | H128: 2020-01-08 | I128: 2020-01-14 | J128: 2020-01-21 | L128: SIM
A129: 4 | B129: 9243 | C129: 6750 | E129: A7 DISTRIBUIDORA DE MEDICAMENTOS EIRELI | F129: 12.664.453/0001-00 | G129: 23817.000340/2020-93 | H129: 2020-01-08 | I129: 2020-01-15 | J129: 2020-01-21 | L129: SIM
A130: 5 | B130: 9245 | C130: 6750 | E130: A7 DISTRIBUIDORA DE MEDICAMENTOS EIRELI | F130: 12.664.453/0001-00 | G130: 23817.000343/2020-27 | H130: 2020-01-08 | I130: 2020-01-15 | J130: 2020-01-21 | L130: SIM
A131: 6 | B131: 8114 | C131: 104 | E131: MEDMAX COMERCIO DE MEDICAMENTOS LTDA | F131: 16.553.940/0001-48 | G131: 23817.000336/2020-25 | H131: 2020-01-06 | I131: 2020-01-15 | J131: 2020-01-21 | L131: SIM
A132: 7 | B132: 527494 | C132: 9400 | E132: BECTON DICKINSON INDUSTRIAIS CIRURGICAS LTDA | F132: 21.551.379/0008-74 | G132: 23817.000096/2020-69 | H132: 2020-01-03 | I132: 2020-01-15 | L132: NÃO
A133: 8 | B133: 607 | C133: 145 | E133: ANJOMEDI DISTRIBUIDORA DE MEDICAMENTOS LTDA | F133: 31.151.224/0001-28 | G133: 23817.000392/2020-60 | H133: 2020-01-09 | I133: 2020-01-15 | L133: NÃO
A134: 9 | B134: 45762 | C134: 5000 | E134: SG TECNOLOGIA CLINICA LTDA | F134: 61.485.900/0005-94 | G134: 23817.000230/2020-21 | H134: 2020-01-07 | I134: 2020-01-15 | L134: NÃO
A135: 11 | B135: 30987 e 30989 | C135: 794.34 | E135: MEDIC STOCK COMERCIO DE PRODUTOS MEDICOS HOSPITALARES EIRELI | F135: 05.997.927/0001-61 | G135: 23817.012881/2019-21 | H135: 2020-01-13 | I135: 2020-01-16 | L135: NAO
A136: 12 | B136: 30992 | C136: 895 | E136: MEDIC STOCK COMERCIO DE PRODUTOS MEDICOS HOSPITALARES EIRELI | F136: 05.997.927/0001-61 | G136: 23817.000606/2020-06 | H136: 2020-01-13 | I136: 2020-01-16 | L136: NÃO
A137: 13 | B137: 3791 | C137: 7280 | E137: CRUZEL COMERCIAL DISTRIBUIDORA DE PRODUTOS HOSPITALARES EIRELI | F137: 19.877.178/0001-43 | G137: 23817.000704/2020-35 | H137: 2020-01-14 | I137: 2020-01-16 | L137: NÃO
A138: 14 | B138: 132617 | C138: 1988 | E138: PROMEFARMA REPRESENTAÇÕES COMERCIAIS LTDA | F138: 81.706.251/0001-98 | G138: 23817.010119/2019-18 | H138: 2020-01-14 | I138: 2020-01-16 | L138: NÃO
A139: 15 | B139: 4922 | C139: 3480 | E139: MEDCOM COMERCIO REP. E SERVIÇOS LTDA | F139: 06.886.136/0001-27 | G139: 23817.000507/2020-16 | H139: 2020-01-10 | I139: 2020-01-17 | L139: NÃO
A140: 16 | B140: 13 | C140: 12550 | D140: 13/2019 | E140: CASA VIVA MOVEIS E DECORAÇÕES LTDA ME | F140: 08.797.404/0001-60 | G140: 23817.000743/2020-32 | H140: 2020-01-20 | I140: 2020-01-20 | L140: NAO
A141: 17 | B141: 6245 E 6548 | C141: 575 | E141: SANFARMA COMERCIO DE MEDICAMENTOS LTDA | F141: 00.895.119/0001-70 | G141: 23817.012076/2019-05 | H141: 2020-01-21 | I141: 2020-01-21 | L141: NÃO
A142: 18 | B142: 223021 | C142: 24403.2 | E142: FARMACE INDUSTRIA QUIMICO FARMACEUTICA CEARESNE LTDA | F142: 06.628.333/0001-46 | G142: 23817.001033/2020-20 | H142: 2020-01-17 | I142: 2020-01-22 | L142: NÃO
A143: 19 | B143: 569 E 540 | C143: 3200 | E143: LB COMERCIO E SERVIÇO LTDA ME | F143: 18.489.967/0001-44 | G143: 23817.012805/2019/15 | H143: 2020-01-27 | I143: 2020-01-28 | L143: NÃO
A144: 20 | B144: 539,570 E 571 | C144: 13192.5 | E144: LB COMERCIO E SERVIÇO LTDA ME | F144: 18.489.967/0001-44 | G144: 23817.012803/2019-26 | H144: 2020-01-27 | I144: 2020-01-28 | L144: NÃO
A145: 21 | B145: 969 | C145: 510.9 | E145: NEO MED MAT HOSPITALALRES LTDA | F145: 23.119.087/0001-16 | G145: 23817.001416/2020-06 | H145: 2020-01-27 | I145: 2020-01-29 | L145: NÃO
A146: 22 | B146: 31415 | C146: 3500 | E146: MEDIC STOCK COMERCIO DE PRODUTOS MEDICOS HOSPITALARES EIRELI | F146: 05.997.927/0001-61 | G146: 23817.001510/2020-57 | H146: 2020-01-29 | I146: 2020-01-30 | L146: NÃO
C147: =SUM(C126:C146) -> 106313.94
A149: LISTA CLASSIFICATÓRIA ESPECIAL DE PEQUENOS CREDORES* FONTE 8100915002
A150: Nº | B150: N° FATURA | C150: VALOR DA FATURA | D150: CONTRATO | E150: RAZÃO SOCIAL | F150: CNPJ | G150: N° PROCESSO | H150: DATA DA EXIGIBILIDADE* | I150: DATA DE ENVIO P/ PGMT | J150: DATA DE PAGAMENTO | K150: JUSTIFICATIVA | L150: PAGAMENTO EFETUADO?
A151: 1 | B151: 9 | C151: 12000 | D151: 16/2019 | E151: MARLON ROSARIO DE MELO 00162989504 | F151: 27.054.497/0001-87 | G151: 23817.012503/2019-47 | H151: 2019-12-20 | I151: 2019-12-27 | J151: 2020-01-29 | K151: O FORNECEDOR NÃO TINHA CONTA BANCARIA DE PJ | L151: SIM
A152: 2 | B152: 300720 | C152: 16590 | D152: 21/2019 | E152: FUNDAÇÃO ZERBINI | F152: 50.644.053/0001-13 | G152: 23817.011626/2019-61 | H152: 2020-01-08 | I152: 2020-01-15 | J152: 2020-01-24 | L152: SIM
C153: =SUM(C151:C152) -> 28590
A155: LISTA CLASSIFICATÓRIA ESPECIAL DE PEQUENOS CREDORES* FONTE 0151003011
A156: Nº | B156: N° FATURA | C156: VALOR DA FATURA | D156: CONTRATO | E156: RAZÃO SOCIAL | F156: CNPJ | G156: N° PROCESSO | H156: DATA DA EXIGIBILIDADE* | I156: DATA DE ENVIO P/ PGMT | J156: DATA DE PAGAMENTO | K156: JUSTIFICATIVA | L156: PAGAMENTO EFETUADO?
A157: 1 | B157: 21251 | C157: 31900 | E157: DATEN TECNOLOGIA LTDA | F157: 04.62.789/0001-01 | G157: 23817.000434/2020-62 | H157: 2020-01-09 | I157: 2020-01-16 | L157: NÃO
C158: =SUM(C157:C157) -> 31900
A160: CATEGORIA: I - FORNECIMENTO DE BENS - FONTE 0151002788
A161: Nº | B161: N° FATURA | C161: VALOR DA FATURA | D161: CONTRATO | E161: RAZÃO SOCIAL | F161: CNPJ | G161: N° PROCESSO | H161: DATA DA EXIGIBILIDADE* | I161: DATA DE ENVIO P/ PGMT | J161: DATA DE PAGAMENTO | K161: JUSTIFICATIVA | L161: PAGAMENTO EFETUADO?
A162: 1 | B162: 7226 | C162: 1769.04 | E162: DISTRIBUIDORA DE MEDICAMENTOS PRO SAUDE LTDA | F162: 08.676.370/0001-55 | G162: 23817.012807/2019-12 | H162: 2019-12-23 | I162: 2019-12-24 | L162: NÃO
A163: 2 | B163: 7227 | C163: 74.7 | E163: DISTRIBUIDORA DE MEDICAMENTOS PRO SAUDE LTDA | F163: 08.676.370/0001-55 | G163: 23817.012822/2019-52 | H163: 2019-12-23 | I163: 2019-12-24 | L163: NÃO
A164: 3 | B164: 7228 | C164: 1800 | E164: DISTRIBUIDORA DE MEDICAMENTOS PRO SAUDE LTDA | F164: 08.676.370/0001-55 | G164: 23817.012791/2019-30 | H164: 2019-12-23 | I164: 2019-12-24 | L164: NÃO
A165: 4 | B165: 136623 | C165: 4077 | E165: PROMEFARMA REPRESENTAÇÕES COMERCIAIS LTDA | F165: 81.706.251/0001-98 | G165: 23817.012841/2019-89 | H165: 2019-12-24 | I165: 2019-12-26 | L165: NÃO
A166: 5 | B166: 7924 | C166: 3129.6 | E166: MEDMAX COMERCIO DE MEDICAMENTOS LTDA | F166: 16.553.940/0001-48 | G166: 23817.012842/2019-23 | H166: 2019-12-24 | I166: 2019-12-26 | L166: NÃO
A167: 6 | B167: 7923 | C167: 466 | E167: MEDMAX COMERCIO DE MEDICAMENTOS LTDA | F167: 16.553.940/0001-48 | G167: 23817.012849/2019-45 | H167: 2019-12-24 | I167: 2019-12-26 | L167: NÃO
A168: 7 | B168: 247487 | C168: 16888 | E168: CRISTALIA PROD. QUIM. FARMACEUTICOS LTDA | F168: 44.734.671/0001-51 | G168: 23817.012910/2019-54 | H168: 2019-12-26 | I168: 2019-12-27 | L168: NÃO
A169: 8 | B169: 7757 | C169: 2400 | E169: ABM HOSPITALAR LTDA -ME | F169: 22.554.493/0001-44 | G169: 23817.012350/2019-38 | H169: 2020-01-06 | I169: 2020-01-13 | L169: NÃO
A170: 9 | B170: 10025 | C170: 5670 | E170: TC ATUAL COMERCIO DE MEDICAMENTOS LTDA -EPP | F170: 10.493.969/0001-03 | G170: 23817.000387/2020-57 | H170: 2020-01-08 | I170: 2020-01-15 | L170: NÃO
A171: 10 | B171: 12474 E 12792 | C171: 3843.88 | E171: GOLDENPLUS COMERCIO DE MEDICAMENTO E PRODUTOS HOSPITALARES LTDA | F171: 17.472.278/0001-64 | G171: 23817.012194/2019-13 | H171: 2020-01-10 | I171: 2020-01-16 | L171: NÃO
C172: =SUM(C162:C171) -> 40118.22
A173: Data de exigibilidade * - Data de ateste da fatura

Sheet Fornecimento de Bens
A1: PAGAMENTOS REFERENTES AO MÊS DE JANEIRO DE 2019
A3: CATEGORIA: I - FORNECIMENTO DE BENS - FONTE 8250264430
A4: Nº | B4: N° FATURA | C4: VALOR DA FATURA | D4: CONTRATO | E4: RAZÃO SOCIAL | F4: CNPJ | G4: N° PROCESSO | H4: DATA DA EXIGIBILIDADE* | I4: DATA DE ENVIO P/ PGMT | J4: DATA DE PAGAMENTO | K4: JUSTIFICATIVA | L4: PAGAMENTO EFETUADO?
A5: 1 | B5: 97 | C5: 2580 | D5: 03/2019 | E5: CENUTRI CLINICA ESPECIALIZADA DE NUTRIÇÃO LTDA | F5: 07.002.354/0001-14 | G5: 23817.000755/2020-67 | H5: 2020-01-17 | I5: 2020-01-20 | J5: 2020-01-24 | L5: SIM
C6: =SUM(C5) -> 2580
A8: CATEGORIA: I - FORNECIMENTO DE BENS - FONTE 6300000300
A9: Nº | B9: N° FATURA | C9: VALOR DA FATURA | D9: CONTRATO | E9: RAZÃO SOCIAL | F9: CNPJ | G9: N° PROCESSO | H9: DATA DA EXIGIBILIDADE* | I9: DATA DE ENVIO P/ PGMT | J9: DATA DE PAGAMENTO | K9: JUSTIFICATIVA | L9: PAGAMENTO EFETUADO?
A10: 1 | B10: 284639 | C10: 40222.5 | E10: CREMER S.A | F10: 82.641.325/0021-61 | G10: 23817.000102/2020-88 | H10: 2020-01-03 | I10: 2020-01-08 | J10: 2020-01-17 | L10: SIM
A11: 2 | B11: 64742 | C11: 54144 | E11: COMERCIAL MOSTAERT LTDA | F11: 11.563.145/0001-17 | G11: 23817.000146/2020-16 | H11: 2020-01-06 | I11: 2020-01-13 | L11: NÃO
A12: 3 | B12: 92581 | C12: 40380 | E12: UNI HOSPITALAR LTD | F12: 07.484.373/0001-24 | G12: 23817.000280/2020-17 | H12: 2020-01-06 | I12: 2020-01-14 | L12: NÃO
A13: 4 | B13: 3836, 3735, 3883 E 3868 | C13: 61423 | E13: PAULO CESAR DE OLIVEIRA SANTANA | F13: 32.861.890/0001-12 | G13: 23817.000282/2020-06 | H13: 2020-01-27 | I13: 2020-01-28 | L13: NÃO
C14: =SUM(C10:C13) -> 196169.5
A16: CATEGORIA: I - FORNECIMENTO DE BENS - FONTE 0151002171
A17: Nº | B17: N° FATURA | C17: VALOR DA FATURA | D17: CONTRATO | E17: RAZÃO SOCIAL | F17: CNPJ | G17: N° PROCESSO | H17: DATA DA EXIGIBILIDADE* | I17: DATA DE ENVIO P/ PGMT | J17: DATA DE PAGAMENTO | K17: JUSTIFICATIVA | L17: PAGAMENTO EFETUADO?
A18: 1 | B18: 98 | C18: 20096 | D18: 09/2019 | E18: CENUTRI CLINICA ESPECIALIZADA DE NUTRIÇÃO LTDA | F18: 07.002.354/0001-14 | G18: 23817.001163/2020-62 | H18: 2020-01-23 | I18: 2020-01-27 | L18: NÃO
C19: =SUM(C18:C18) -> 20096
A21: CATEGORIA: I - FORNECIMENTO DE BENS - FONTE 8100150714
A22: Nº | B22: N° FATURA | C22: VALOR DA FATURA | D22: CONTRATO | E22: RAZÃO SOCIAL | F22: CNPJ | G22: N° PROCESSO | H22: DATA DA EXIGIBILIDADE* | I22: DATA DE ENVIO P/ PGMT | J22: DATA DE PAGAMENTO | K22: JUSTIFICATIVA | L22: PAGAMENTO EFETUADO?
A23: 1 | B23: 20478 | C23: 262000 | E23: PHILIPS MEDICAL SYSTEMS LTDA | F23: 58.295.213/0021-11 | G23: 23817.001073/2020-71 | H23: 2020-01-16 | I23: 2020-01-22 | L23: NÃO
C24: =SUM(C23:C23) -> 262000
A26: CATEGORIA: I - FORNECIMENTO DE BENS - FONTE 8100915107
A27: Nº | B27: N° FATURA | C27: VALOR DA FATURA | D27: CONTRATO | E27: RAZÃO SOCIAL | F27: CNPJ | G27: N° PROCESSO | H27: DATA DA EXIGIBILIDADE* | I27: DATA DE ENVIO P/ PGMT | J27: DATA DE PAGAMENTO | K27: JUSTIFICATIVA | L27: PAGAMENTO EFETUADO?
A28: 1 | B28: 93463 | C28: 59850 | E28: UNI HOSPITALAR LTDA | F28: 07.484.373/0001-24 | G28: 23817.001088/2020-30 | H28: 2020-01-17 | I28: 2020-01-22 | L28: NÃO
A29: 2 | B29: 14294 | C29: 61400 | E29: RC MOVEIS LTDA | F29: 02.377.937/0001-06 | G29: 23817.001087/2020-95 | H29: 2020-01-22 | I29: 2020-01-23 | L29: NÃO
A30: 3 | B30: 35718 | C30: 67960 | E30: INSTRAMED INDUSTRIA MEEICO HOSPITALAR LTDA | F30: 90.909.631/0001-10 | G30: 23817.001109/2020-17 | H30: 2020-01-16 | I30: 2020-01-23 | L30: NÃO
A31: 4 | B31: 75 | C31: 53900 | E31: GLOBAL DISTRIBUIDORA DE BENS DE CONSUMO LTDA | F31: 89.237.911/0289-08 | G31: 23817.001178/2020-21 | H31: 2020-01-23 | I31: 2020-01-23 | L31: NÃO
A32: 5 | B32: 146937 | C32: 57000 | E32: OLYMPUS OPTICAL DO BRASIL LTDA | F32: 04.937.243/0001-01 | G32: 23817.001093/2020-42 | H32: 2020-01-24 | I32: 2020-01-24 | L32: NÃO
A33: 6 | B33: 85538 | C33: 36000 | E33: PRIME MEDICAL COMERCIO DE MATERIAL MEDICO | F33: 09.342.946/0001-00 | G33: 23817.001251/2020-64 | H33: 2020-01-13 | I33: 2020-01-27 | L33: NÃO
C34: =SUM(C28:C33) -> 336110
A36: CATEGORIA: I - FORNECIMENTO DE BENS - FONTE 0151002583
A37: Nº | B37: N° FATURA | C37: VALOR DA FATURA | D37: CONTRATO | E37: RAZÃO SOCIAL | F37: CNPJ | G37: N° PROCESSO | H37: DATA DA EXIGIBILIDADE* | I37: DATA DE ENVIO P/ PGMT | J37: DATA DE PAGAMENTO | K37: JUSTIFICATIVA | L37: PAGAMENTO EFETUADO?
A38: 1 | B38: 309 | C38: 229999.99 | E38: HENRINOX EQUIPAMENTOS DISTRIBUIDORA E SERVIÇOS EIRELI - ME | F38: 18.355.569/0001-35 | G38: 23817.012714/2019-80 | H38: 2019-12-20 | I38: 2019-12-23 | L38: NÃO
C39: =SUM(C38:C38) -> 229999.99
A41: Data de exigibilidade * - Data de ateste da fatura

Sheet Menu

Sheet Locações
A1: PAGAMENTOS REFERENTES AO MÊS DE JANEIRO DE 2020
A3: CATEGORIA: II- LOCAÇÕES - FONTE 0151002171
A4: Nº | B4: N° FATURA | C4: VALOR DA FATURA | D4: CONTRATO | E4: RAZÃO SOCIAL | F4: CNPJ | G4: N° PROCESSO | H4: DATA DA EXIGIBILIDADE* | I4: DATA DE ENVIO P/ PGMT | J4: DATA DE PAGAMENTO | K4: JUSTIFICATIVA | L4: PAGAMENTO EFETUADO?
A5: 1 | B5: 371589 | C5: 2333.33 | D5: 07/2019 | E5: WHITE MARTINS GASES INDUSTRIAIS NE LTDA | F5: 24.380.578/0004-21 | G5: 23817.012238/2019-05 | H5: 2019-12-12 | I5: 2019-12-19 | L5: NÃO
A6: 2 | B6: 371590 | C6: 2333.33 | D6: 07/2019 | E6: WHITE MARTINS GASES INDUSTRIAIS NE LTDA | F6: 24.380.578/0004-21 | G6: 23817.000510/2020-30 | H6: 2020-01-10 | I6: 2020-01-17 | L6: NÃO
C7: =SUM(C5:C6) -> 4666.66
A8: Data de exigibilidade * - Data de ateste da fatura

Sheet Prestação de Serviço
A1: PAGAMENTOS REFERENTES AO MÊS DE JANEIRO DE 2020
A3: CATEGORIA: III - PRESTAÇÃO DE SERVIÇO - FONTE 8250264430
A4: Nº | B4: N° FATURA | C4: VALOR DA FATURA | D4: CONTRATO | E4: RAZÃO SOCIAL | F4: CNPJ | G4: N° PROCESSO | H4: DATA DA EXIGIBILIDADE* | I4: DATA DE ENVIO P/ PGMT | J4: DATA DE PAGAMENTO | K4: JUSTIFICATIVA | L4: PAGAMENTO EFETUADO?
A5: 1 | B5: 252 | C5: 12675 | D5: 12/2019 | E5: X-TEC COMERCIO E SERVIÇOS EIRELI | F5: 06.347.171/0001-78 | G5: 23817.012286/2019-65 | H5: 2020-01-24 | I5: 2020-01-24 | J5: 2020-01-28 | L5: SIM
A6: 2 | B6: 15 | C6: 12675 | D6: 12/2019 | E6: X-TEC COMERCIO E SERVIÇOS EIRELI | F6: 06.347.171/0001-78 | G6: 23817.000275/2020-04 | H6: 2020-01-24 | I6: 2020-01-27 | J6: 2020-01-28 | L6: SIM
C7: =SUM(C5:C6) -> 25350
A9: CATEGORIA: I - PRESTAÇÃO DE SERVIÇO - FONTE 8250264430, 6153000300, 6300000300 e 0151002788
A10: Nº | B10: N° FATURA | C10: VALOR DA FATURA | D10: CONTRATO | E10: RAZÃO SOCIAL | F10: CNPJ | G10: N° PROCESSO | H10: DATA DA EXIGIBILIDADE* | I10: DATA DE ENVIO P/ PGMT | J10: DATA DE PAGAMENTO | K10: JUSTIFICATIVA | L10: PAGAMENTO EFETUADO?
A11: 1 | B11: 2512 | C11: 82386.22 | D11: 01/2019 | E11: ENGEBIO SEVIÇOS TECNICOS DE ENGENHARIA LTDA | F11: 06.555.589/0001-70 | G11: 23817.011989/2019-04 | H11: 2019-12-23 | I11: 2019-12-27 | L11: NÃO
C12: =SUM(C11:C11) -> 82386.22
A14: CATEGORIA: I - PRESTAÇÃO DE SERVIÇO - FONTE 6300000300
A15: Nº | B15: N° FATURA | C15: VALOR DA FATURA | D15: CONTRATO | E15: RAZÃO SOCIAL | F15: CNPJ | G15: N° PROCESSO | H15: DATA DA EXIGIBILIDADE* | I15: DATA DE ENVIO P/ PGMT | J15: DATA DE PAGAMENTO | K15: JUSTIFICATIVA | L15: PAGAMENTO EFETUADO?
A16: 1 | B16: 2020014977424 | C16: 47993.02 | D16: 03/2018 | E16: COMPANHIA DE SANEAMENTO DE SERGIPE -DESO | F16: 13.018.171/0001-90 | G16: 23817.000385/2020-68 | H16: 2020-01-09 | I16: 2020-01-09 | J16: 2020-01-17 | L16: SIM
A17: 2 | B17: 1353 | C17: 10229.44 | D17: 06/2019 | E17: STERICYCLE GESTÃO AMBIENTAL LTDA | F17: 01.568.077/0011-05 | G17: 23817.000184/2020-61 | H17: 2020-01-08 | I17: 2020-01-10 | J17: 2020-01-17 | L17: SIM
A18: 3 | B18: 2216 | C18: 3000 | D18: 02/2019 | E18: GERACAO SERVICO DE MENUTENCAO E REPARACAO DE GERADORES LTDA | F18: 10.646.538/0001-21 | G18: 23817.000145/2020-63 | H18: 2020-01-06 | I18: 2020-01-14 | L18: NÃO
A19: 4 | B19: 1356 E 1359 | C19: 7390.96 | D19: 85/2016 | E19: BK TELECOMUNICAÇÕES LTDA - ME | F19: 18.929.415/0001-00 | G19: 23817.000349/2020-02 | H19: 2020-01-09 | I19: 2020-01-16 | L19: NÃO
C20: =SUM(C16:C19) -> 68613.42
A22: CATEGORIA: I - PRESTAÇÃO DE SERVIÇO - FONTE 6153000300
A23: Nº | B23: N° FATURA | C23: VALOR DA FATURA | D23: CONTRATO | E23: RAZÃO SOCIAL | F23: CNPJ | G23: N° PROCESSO | H23: DATA DA EXIGIBILIDADE* | I23: DATA DE ENVIO P/ PGMT | J23: DATA DE PAGAMENTO | K23: JUSTIFICATIVA | L23: PAGAMENTO EFETUADO?
A24: 1 | B24: 30925 | C24: 307.35 | D24: 14/2017 | E24: EMPRESA BRASILEIRA DE CORREIOS E TELEGRÁFOS | F24: 34.028.316/0032-00 | G24: 23817.000231/2020-76 | H24: 2019-01-07 | I24: 2020-01-09 | J24: 2020-01-17 | L24: SIM
A25: 2 | B25: 2 | C25: 16459.09 | D25: 10/2019 | E25: HC CONSTRUÇÕES E PROJETOS LTDA ME | F25: 11.964.142/0001-95 | G25: 23817.000232/2020-11 | H25: 2020-01-08 | I25: 2020-01-10 | J25: 2020-01-17 | L25: SIM
A26: 3 | B26: 3 | C26: 17059.28 | D26: 19/2019 | E26: FCM INSTALADORA ELETRICA EIRELI ME | F26: 04.020.858/0001-79 | G26: 23817.000026/2020-19 | H26: 2020-01-06 | I26: 2020-01-15 | L26: NÃO
A27: 4 | B27: 34117979 | C27: 2956.56 | D27: 05/2018 | E27: TICKET SOLUCOES HDFGT S/A | F27: 03.506.307/0001-57 | G27: 23817.000039/2020-80 | H27: 2020-01-06 | I27: 2020-01-16 | L27: NÃO
C28: =SUM(C24:C27) -> 36782.28
A30: CATEGORIA: I - PRESTAÇÃO DE SERVIÇO - FONTE 6153000300, 0151002171 e 0151002788
A31: Nº | B31: N° FATURA | C31: VALOR DA FATURA | D31: CONTRATO | E31: RAZÃO SOCIAL | F31: CNPJ | G31: N° PROCESSO | H31: DATA DA EXIGIBILIDADE* | I31: DATA DE ENVIO P/ PGMT | J31: DATA DE PAGAMENTO | K31: JUSTIFICATIVA | L31: PAGAMENTO EFETUADO?
A32: 1 | B32: 269 | C32: 146818.73 | D32: 08/2018 | E32: VALLE SERVIÇOS EIRELI | F32: 08.968.820/0001-83 | G32: 23817.000095/2020-14 | H32: 2020-01-06 | I32: 2020-01-08 | L32: NÃO
C33: =SUM(C32:C32) -> 146818.73
A35: CATEGORIA: I - PRESTAÇÃO DE SERVIÇO- FONTE 6153000300 E 0151002171
A36: Nº | B36: N° FATURA | C36: VALOR DA FATURA | D36: CONTRATO | E36: RAZÃO SOCIAL | F36: CNPJ | G36: N° PROCESSO | H36: DATA DA EXIGIBILIDADE* | I36: DATA DE ENVIO P/ PGMT | J36: DATA DE PAGAMENTO | K36: JUSTIFICATIVA | L36: PAGAMENTO EFETUADO?
A37: 1 | B37: 5 | C37: 83297.6 | D37: 02/2017 | E37: SACEL - SERVIÇOS DE VIGILÂNCIA PATRIMONIAL EIRELI | F37: 16.207.888/00001-78 | G37: 23817.000151/2020-11 | H37: 2020-01-07 | I37: 2020-01-08 | L37: NÃO
C38: =SUM(C37:C37) -> 83297.6
A40: CATEGORIA: I - PRESTAÇÃO DE SERVIÇO- FONTE 6153000300, 6300000300, 8100915107
A41: Nº | B41: N° FATURA | C41: VALOR DA FATURA | D41: CONTRATO | E41: RAZÃO SOCIAL | F41: CNPJ | G41: N° PROCESSO | H41: DATA DA EXIGIBILIDADE* | I41: DATA DE ENVIO P/ PGMT | J41: DATA DE PAGAMENTO | K41: JUSTIFICATIVA | L41: PAGAMENTO EFETUADO?
A42: 1 | B42: 1585 | C42: 171402.41 | D42: 06/2018 | E42: CLEAN MASTER TERCEIRIZAÇÃO DE SERVIÇOS EIRELI | F42: 14.346.629/0001-00 | G42: 23817.012196/2019-02 | H42: 2019-12-09 | I42: 2019-12-18 | J42: 2020-01-08 | L42: SIM
C43: =SUM(C42:C42) -> 171402.41
A45: CATEGORIA: I - PRESTAÇAO DE SERVIÇO - FONTE 8250264430, 6300000300 e 0151002788
A46: Nº | B46: N° FATURA | C46: VALOR DA FATURA | D46: CONTRATO | E46: RAZÃO SOCIAL | F46: CNPJ | G46: N° PROCESSO | H46: DATA DA EXIGIBILIDADE* | I46: DATA DE ENVIO P/ PGMT | J46: DATA DE PAGAMENTO | K46: JUSTIFICATIVA | L46: PAGAMENTO EFETUADO?
A47: 1 | B47: 424 | C47: 43386.15 | D47: 11/2018 | E47: R & L SANTOS CONSTRUTORA LTDA ME | F47: 17.851.596/0001-36 | G47: 23817.000435/2020-15 | H47: 2020-01-10 | I47: 2020-01-22 | L47: NÃO
C48: =SUM(C47:C47) -> 43386.15
A50: CATEGORIA: I - PRESTAÇAO DE SERVIÇO - FONTE 8100915107 E 6300000300
A51: Nº | B51: N° FATURA | C51: VALOR DA FATURA | D51: CONTRATO | E51: RAZÃO SOCIAL | F51: CNPJ | G51: N° PROCESSO | H51: DATA DA EXIGIBILIDADE* | I51: DATA DE ENVIO P/ PGMT | J51: DATA DE PAGAMENTO | K51: JUSTIFICATIVA | L51: PAGAMENTO EFETUADO?
A52: 1 | B52: 1637 | C52: 171402.41 | D52: 06/2018 | E52: CLEAN MASTER TERCEIRIZAÇÃO DE SERVIÇOS EIRELI | F52: 14.346.629/0001-00 | G52: 23817.000278/2020-30 | H52: 2020-01-09 | I52: 2020-01-10 | J52: 2020-01-17 | L52: SIM
A53: 2 | B53: 1630 e 1632 | C53: 235320.96 | D53: 18/2018 | E53: ARENA DISTRIBUIDORA E COMERCIO DE ALIMENTOS E SERVIÇOS E EIRELI | F53: 05.836.297/0001-43 | G53: 23817.000516/2020-15 | H53: 2020-01-15 | I53: 2020-01-17 | L53: NÃO
C54: =SUM(C52:C53) -> 406723.37
A56: CATEGORIA: I - PRESTAÇAO DE SERVIÇO - FONTE 01510001416, 6153000300 E 0151002788
A57: Nº | B57: N° FATURA | C57: VALOR DA FATURA | D57: CONTRATO | E57: RAZÃO SOCIAL | F57: CNPJ | G57: N° PROCESSO | H57: DATA DA EXIGIBILIDADE* | I57: DATA DE ENVIO P/ PGMT | J57: DATA DE PAGAMENTO | K57: JUSTIFICATIVA | L57: PAGAMENTO EFETUADO?
A58: 1 | B58: 265 | C58: 145392.56 | D58: 08/2018 | E58: VALLE SERVIÇOS EIRELI | F58: 08.968.820/0001-83 | G58: 23817.012325/2019-54 | H58: 2019-12-11 | I58: 2019-12-16 | L58: NÃO
C59: =SUM(C58:C58) -> 145392.56
A61: CATEGORIA: I - PRESTAÇAO DE SERVIÇO - FONTE 8100915107 E 0151001416
A62: Nº | B62: N° FATURA | C62: VALOR DA FATURA | D62: CONTRATO | E62: RAZÃO SOCIAL | F62: CNPJ | G62: N° PROCESSO | H62: DATA DA EXIGIBILIDADE* | I62: DATA DE ENVIO P/ PGMT | J62: DATA DE PAGAMENTO | K62: JUSTIFICATIVA | L62: PAGAMENTO EFETUADO?
A63: 1 | B63: 1622 | C63: 247103.6 | D63: 18/2018 | E63: ARENA DISTRIBUIDORA E COMERCIO DE ALIMENTOS E SERVIÇOS E EIRELI | F63: 05.836.297/0001-43 | G63: 23817.012541/2019-08 | H63: 2019-12-17 | I63: 2019-12-18 | L63: NÃO
C64: =SUM(C63:C63) -> 247103.6
A66: CATEGORIA: I - PRESTAÇAO DE SERVIÇO - FONTE 6300000300 E 6153000300
A67: Nº | B67: N° FATURA | C67: VALOR DA FATURA | D67: CONTRATO | E67: RAZÃO SOCIAL | F67: CNPJ | G67: N° PROCESSO | H67: DATA DA EXIGIBILIDADE* | I67: DATA DE ENVIO P/ PGMT | J67: DATA DE PAGAMENTO | K67: JUSTIFICATIVA | L67: PAGAMENTO EFETUADO?
A68: 1 | B68: 1622 | C68: 92192.63 | D68: 02/2018 | E68: ENERGISA SERGIPE - DISTRIBUIDORA DE ENERGIA S/A | F68: 13.017.462/0001-63 | G68: 23817.013069/2019-12 | H68: 2020-01-06 | I68: 2020-01-13 | J68: 2020-01-17 | L68: SIM
C69: =SUM(C68:C68) -> 92192.63
A71: CATEGORIA: I - PRESTAÇAO DE SERVIÇO - FONTE 0151002788
A72: Nº | B72: N° FATURA | C72: VALOR DA FATURA | D72: CONTRATO | E72: RAZÃO SOCIAL | F72: CNPJ | G72: N° PROCESSO | H72: DATA DA EXIGIBILIDADE* | I72: DATA DE ENVIO P/ PGMT | J72: DATA DE PAGAMENTO | K72: JUSTIFICATIVA | L72: PAGAMENTO EFETUADO?
A73: 1 | B73: 10 | C73: 35925.16 | D73: 09/2018 | E73: YEX GESTAO DE SERVICOS LTDA | F73: 07.689.816/0001-13 | G73: 23817.000049/2020-15 | H73: 2020-01-06 | I73: 2020-01-16 | L73: NÃO
C74: =SUM(C73:C73) -> 35925.16
A76: CATEGORIA: I - PRESTAÇAO DE SERVIÇO - FONTE 8250264430, 0151002788 e 0151001416
A77: Nº | B77: N° FATURA | C77: VALOR DA FATURA | D77: CONTRATO | E77: RAZÃO SOCIAL | F77: CNPJ | G77: N° PROCESSO | H77: DATA DA EXIGIBILIDADE* | I77: DATA DE ENVIO P/ PGMT | J77: DATA DE PAGAMENTO | K77: JUSTIFICATIVA | L77: PAGAMENTO EFETUADO?
A78: 1 | B78: 2482 | C78: 66460.46 | D78: 01/2019 | E78: ENGEBIO SERVIÇOS TECNICOS DE ENGENHARIA LTDA | F78: 06.555.589/0001-70 | G78: 23817.010725/2019-25 | H78: 2019-11-13 | I78: 2020-01-20 | L78: NÃO
C79: =SUM(C78:C78) -> 66460.46
A81: CATEGORIA: I - PRESTAÇAO DE SERVIÇO - FONTE 6300000300 e 0151019459
A82: Nº | B82: N° FATURA | C82: VALOR DA FATURA | D82: CONTRATO | E82: RAZÃO SOCIAL | F82: CNPJ | G82: N° PROCESSO | H82: DATA DA EXIGIBILIDADE* | I82: DATA DE ENVIO P/ PGMT | J82: DATA DE PAGAMENTO | K82: JUSTIFICATIVA | L82: PAGAMENTO EFETUADO?
A83: 1 | B83: 408 | C83: 42189.91 | D83: 11/2018 | E83: R & L SANTOS CONSTRUTORA LTDA ME | F83: 17.851.596/0001-36 | G83: 23817.012504/2019-91 | H83: 2019-12-18 | I83: 2020-01-20 | L83: NÃO
C84: =SUM(C83:C83) -> 42189.91
A86: CATEGORIA: I - PRESTAÇAO DE SERVIÇO - FONTE 6300000300 e 0151002788
A87: Nº | B87: N° FATURA | C87: VALOR DA FATURA | D87: CONTRATO | E87: RAZÃO SOCIAL | F87: CNPJ | G87: N° PROCESSO | H87: DATA DA EXIGIBILIDADE* | I87: DATA DE ENVIO P/ PGMT | J87: DATA DE PAGAMENTO | K87: JUSTIFICATIVA | L87: PAGAMENTO EFETUADO?
A88: 1 | B88: 2521 | C88: 61421.05 | D88: 01/2019 | E88: ENGEBIO SERVIÇOS TECNICOS DE ENGENHARIA LTDA | F88: 06.555.589/0001-70 | G88: 23817.000346/2020-61 | H88: 2020-01-09 | I88: 2020-01-20 | L88: NÃO
C89: =SUM(C88:C88) -> 61421.05
A91: CATEGORIA: I - PRESTAÇAO DE SERVIÇO - FONTE 6300000300 e 8250264430
A92: Nº | B92: N° FATURA | C92: VALOR DA FATURA | D92: CONTRATO | E92: RAZÃO SOCIAL | F92: CNPJ | G92: N° PROCESSO | H92: DATA DA EXIGIBILIDADE* | I92: DATA DE ENVIO P/ PGMT | J92: DATA DE PAGAMENTO | K92: JUSTIFICATIVA | L92: PAGAMENTO EFETUADO?
A93: 1 | B93: 1633 E 1281 | C93: =9560.28+11243.04 -> 20803.32 | D93: 05/2019 | E93: PRINTPAGE LOCAÇÃO DE EQUIPAMENTOS E SERVIÇOS EIRELI | F93: 09.392.052/0001-25 | G93: 23817.001401/2020-30 | H93: 2020-01-28 | I93: 2020-01-29 | L93: NÃO
C94: =SUM(C93:C93) -> 20803.32
A95: Data de exigibilidade * - Data de ateste da fatura

Sheet Realização de Obra
A1: PAGAMENTOS REFERENTES AO MÊS DE JANEIRO DE 2020
A3: CATEGORIA: IV - REALIZAÇÃO DE OBRAS
A4: Nº | B4: N° FATURA | C4: VALOR DA FATURA | D4: CONTRATO | E4: RAZÃO SOCIAL | F4: CNPJ | G4: N° PROCESSO | H4: DATA DA EXIGIBILIDADE* | I4: DATA DE ENVIO P/ PGMT | J4: DATA DE PAGAMENTO | K4: JUSTIFICATIVA | L4: PAGAMENTO EFETUADO?
A5: 1
A6: 2
A7: 3
A8: 4
A9: 5
A10: 6
A11: 7
A12: 8
A13: 9
A14: 10
C15: =SUM(C5:C14) -> 0
A16: Data de exigibilidade * - Data de ateste da fatura
